fUST/lending_fUST_20251212
["ID","MTS","AMOUNT","RATE_DAILY","PERIOD"]
[398352784,1765550620470,-500.0,0.00041369,120]
[398352785,1765550620497,-5550.06,0.00041369,120]
[398352786,1765550620523,-876.53,0.00041369,120]
[398352787,1765550620553,-3422.1,0.00041369,120]
[398352788,1765550620578,-742.28,0.00041369,120]
[398352789,1765550620604,-1603.27,0.00041369,120]
[398352790,1765550620629,-500.0,0.00041369,120]
[398352791,1765550620653,-528.71,0.00041369,120]
[398352792,1765550620678,-500.0,0.00041369,120]
[398352793,1765550620703,-893.45,0.00041369,120]
[398352794,1765550620728,-500.0,0.00041369,120]
[398352795,1765550620753,-863.82,0.00041369,120]
[398352796,1765550620778,-2007.36,0.00041369,120]
[398352797,1765550620804,-8598.22,0.00041369,120]
[398352798,1765550620829,-1629.58,0.00041369,120]
[398352799,1765550620853,-577.55,0.00041369,120]
[398352800,1765550620878,-500.0,0.00041369,60]
[398352801,1765550620903,-500.0,0.00041369,120]
[398352802,1765550620929,-6596.14,0.00041369,120]
[398352803,1765550620954,-500.0,0.00041369,120]
[398352804,1765550620979,-612.89,0.00041369,120]
[398352805,1765550621005,-529.71,0.00041369,120]
[398352806,1765550621031,-500.0,0.00041369,120]
[398352807,1765550621057,-1189.73,0.00041369,120]
[398352808,1765550621083,-1321.92,0.00041369,21]
[398352809,1765550621108,-555.33,0.00041369,120]
[398352810,1765550621134,-500.0,0.00041369,120]
[398352811,1765550621161,-500.0,0.00041369,120]
[398352812,1765550621188,-762.11,0.00041369,120]
[398352813,1765550621214,-2165.66,0.00041369,120]
[398352814,1765550621240,-500.0,0.00041369,120]
[398352815,1765550621266,-500.0,0.00041369,120]
[398352816,1765550621292,-500.0,0.00041369,120]
[398352817,1765550621320,-926.08,0.00041369,120]
[398352818,1765550621346,-927.01,0.00041369,120]
[398352819,1765550621373,-1481.02,0.00041369,120]
[398352820,1765550621400,-9311.53,0.00041369,120]
[398352821,1765550621428,-500.0,0.00041369,120]
[398352822,1765550621455,-638.95,0.00041369,120]
[398352823,1765550621483,-500.0,0.00041369,120]
[398352824,1765550621508,-500.0,0.00041369,120]
[398352825,1765550621535,-500.0,0.00041369,120]
[398352826,1765550621562,-666.47,0.00041369,120]
[398352827,1765550621588,-178.97006693,0.00041369,120]
[398352828,1765550621614,-544.01,0.00041369,120]
[398352829,1765550621640,-713.64,0.00041369,120]
[398352830,1765550621666,-620.83,0.00041369,120]
[398352831,1765550621691,-9421.58,0.00041369,120]
[398352832,1765550621716,-500.0,0.00041369,120]
[398352833,1765550621742,-730.68,0.00041369,120]
[398352834,1765550621768,-500.0,0.00041369,120]
[398352835,1765550621794,-580.18,0.00041369,120]
[398352836,1765550621821,-3515.94,0.00041369,120]
[398352837,1765550621848,-1297.0,0.00041369,30]
[398352838,1765550621875,-633.66,0.00041369,120]
[398352839,1765550621901,-922.4,0.00041369,30]
[398352840,1765550621927,-500.0,0.00041369,120]
[398352841,1765550621954,-5514.1,0.00041369,120]
[398352842,1765550621980,-500.0,0.00041369,120]
[398352843,1765550622006,-4450.87,0.00041369,120]
[398352844,1765550622034,-1066.27,0.00041369,120]
[398352845,1765550622062,-500.0,0.00041369,120]
[398352846,1765550622089,-578.39,0.00041369,120]
[398352847,1765550622115,-4678.34,0.00041369,120]
[398352848,1765550622149,-6211.14,0.00041369,120]
[398352849,1765550622176,-631.3,0.00041369,120]
[398352850,1765550622202,-500.0,0.00041369,120]
[398352851,1765550622228,-2126.42,0.00041369,120]
[398352852,1765550622255,-969.25,0.00041369,120]
[398352853,1765550622281,-1905.34,0.00041369,120]
[398352854,1765550622307,-730.44,0.00041369,120]
[398352855,1765550622332,-500.0,0.00041369,120]
[398352856,1765550622358,-2439.18,0.00041369,120]
[398352857,1765550622384,-1146.25,0.00041369,120]
[398352858,1765550622410,-500.0,0.00041369,120]
[398352859,1765550622437,-5316.03,0.00041369,120]
[398352860,1765550622463,-2849.86,0.00041369,120]
[398352861,1765550622487,-11745.46,0.00041369,120]
[398352862,1765550622512,-1652.31,0.00041369,120]
[398352863,1765550622540,-500.0,0.00041369,120]
[398352864,1765550622565,-500.0,0.00041369,120]
[398352865,1765550622590,-980.55,0.00041369,120]
[398352866,1765550622615,-500.0,0.00041369,120]
[398352867,1765550622639,-500.0,0.00041369,120]
[398352868,1765550622663,-1404.64,0.00041369,120]
[398352869,1765550622688,-500.0,0.00041369,120]
[398352870,1765550622712,-1817.08,0.00041369,120]
[398352871,1765550622735,-500.0,0.00041369,120]
[398352872,1765550622915,-552.9,0.00041369,120]
[398352873,1765550622941,-500.0,0.00041369,120]
[398352874,1765550622967,-500.0,0.00041369,120]
[398352875,1765550622992,-572.08,0.00041369,120]
[398352876,1765550623017,-592.14536802,0.00041369,120]
[398352877,1765550623043,-1877.07,0.00041369,120]
[398352878,1765550623070,-500.0,0.00041369,120]
[398352879,1765550623095,-459.27648451,0.00041369,120]
[398352880,1765550623120,-1399.66,0.00041369,120]
[398352881,1765550623145,-500.0,0.00041369,120]
[398352882,1765550623171,-647.43,0.00041369,120]
[398352883,1765550623197,-500.0,0.00041369,120]
[398352884,1765550623222,-613.33894833,0.00041369,120]
[398352885,1765550623247,-500.0,0.00041369,120]
[398352886,1765550623271,-500.0,0.00041369,30]
[398352887,1765550623296,-1192.86,0.00041369,120]
[398352888,1765550623321,-500.0,0.00041369,120]
[398352889,1765550623347,-11370.39,0.00041369,120]
[398352890,1765550623372,-1106.66,0.00041369,120]
[398352891,1765550623397,-500.0,0.00041369,120]
[398352892,1765550623423,-2998.58,0.00041369,120]
[398352893,1765550623448,-949.79,0.00041369,120]
[398352894,1765550623476,-582.61,0.00041369,120]
[398352895,1765550623502,-13925.74,0.00041369,120]
[398352896,1765550623526,-5218.25,0.00041369,120]
[398352897,1765550623555,-500.0,0.00041369,120]
[398352898,1765550623580,-1759.22,0.00041369,120]
[398352899,1765550623605,-2423.2,0.00041369,120]
[398352900,1765550623629,-500.0,0.00041369,120]
[398352901,1765550623654,-685.39,0.00041369,120]
[398352902,1765550623677,-500.0,0.00041369,120]
[398352903,1765550623702,-638.48,0.00041369,120]
[398352904,1765550623726,-500.0,0.00041369,120]
[398352905,1765550623751,-554.1,0.00041369,120]
[398352906,1765550623776,-200.45,0.000415,120]
[398352907,1765550623801,-1668.536328,0.00041643,120]
[398352908,1765550623827,-496.84809073,0.00041643,120]
[398352909,1765550623851,-500.0,0.00041643,120]
[398352910,1765550623876,-500.0,0.00041643,120]
[398352911,1765550623901,-542.82,0.00041643,120]
[398352912,1765550623927,-500.0,0.00041643,120]
[398352913,1765550623953,-500.0,0.00041643,120]
[398352914,1765550623979,-1542.23,0.00041643,120]
[398352915,1765550624004,-500.67922078,0.00041643,120]
[398352916,1765550624030,-656.58,0.00041643,120]
[398352917,1765550624056,-500.0,0.00041643,120]
[398352918,1765550624083,-500.0,0.00041643,120]
[398352919,1765550624109,-1149.44,0.00041643,120]
[398352920,1765550624135,-1912.47,0.00041643,120]
[398352921,1765550624161,-500.0,0.00041643,120]
[398352922,1765550624187,-500.0,0.00041643,20]
[398352923,1765550624213,-500.0,0.00041643,120]
[398352924,1765550624238,-500.0,0.00041643,120]
[398352925,1765550624263,-500.0,0.00041643,120]
[398352926,1765550624288,-500.0,0.00041643,120]
[398352927,1765550624313,-464.86740101,0.00041643,120]
[398352928,1765550624338,-500.0,0.00041643,120]
[398352929,1765550624363,-500.0,0.00041643,120]
[398352930,1765550624388,-500.0,0.00041643,120]
[398352931,1765550624413,-500.0,0.00041643,120]
[398352932,1765550624440,-500.0,0.00041643,120]
[398352933,1765550624466,-341.31,0.00041643,120]
[398352934,1765550624492,-183.99047259,0.00041643,120]
[398352935,1765550624517,-500.0,0.00041643,120]
[398352936,1765550624543,-500.0,0.00041643,120]
[398352937,1765550624569,-861.35,0.00041643,120]
[398352938,1765550624594,-500.0,0.00041643,120]
[398352939,1765550624619,-500.0,0.00041643,120]
[398352940,1765550624643,-582.72,0.00041643,120]
[398352941,1765550624669,-500.0,0.00041643,120]
[398352942,1765550624694,-583.25,0.00041643,120]
[398352943,1765550624719,-500.0,0.00041643,120]
[398352944,1765550624743,-500.0,0.00041643,120]
[398352945,1765550624768,-625.32,0.00041643,120]
[398352946,1765550624793,-382.35879836,0.00041643,120]
[398352947,1765550624817,-666.03,0.00041643,120]
[398352948,1765550624843,-500.0,0.00041643,120]
[398352949,1765550624868,-500.0,0.00041643,120]
[398352950,1765550624894,-500.0,0.00041643,120]
[398352951,1765550624919,-500.0,0.00041643,120]
[398352952,1765550624944,-500.0,0.00041643,120]
[398352953,1765550624970,-514.07,0.00041643,120]
[398352954,1765550624997,-500.0,0.00041643,120]
[398352955,1765550625023,-500.0,0.00041643,120]
[398352956,1765550625050,-500.0,0.00041643,120]
[398352957,1765550625076,-500.0,0.00041643,120]
[398352958,1765550625103,-557.56,0.00041643,120]
[398352959,1765550625130,-500.0,0.00041643,120]
[398352960,1765550625157,-500.0,0.00041643,120]
[398352961,1765550625185,-784.13,0.00041643,120]
[398352962,1765550625211,-500.0,0.00041643,120]
[398352963,1765550625239,-580.32,0.00041643,120]
[398352964,1765550625266,-500.0,0.00041643,120]
[398352965,1765550625293,-500.0,0.00041643,120]
[398352966,1765550625473,-500.0,0.00041643,120]
[398352967,1765550625500,-500.0,0.00041643,120]
[398352968,1765550625527,-500.0,0.00041643,120]
[398352969,1765550625557,-500.0,0.00041643,120]
[398352970,1765550625583,-500.0,0.00041643,120]
[398352971,1765550625609,-887.99,0.00041643,120]
[398352972,1765550625637,-500.0,0.00041643,120]
[398352973,1765550625663,-633.52,0.00041643,120]
[398352974,1765550625690,-500.0,0.00041643,120]
[398352975,1765550625716,-500.0,0.00041643,120]
[398352976,1765550625741,-500.0,0.00041643,120]
[398352977,1765550625767,-500.78721221,0.00041643,120]
[398352978,1765550625793,-500.0,0.00041643,120]
[398352979,1765550625821,-500.0,0.00041643,120]
[398352980,1765550625847,-500.0,0.00041643,120]
[398352981,1765550625873,-500.0,0.00041643,120]
[398352982,1765550625900,-1098.42,0.00041643,120]
[398352983,1765550625926,-500.0,0.00041643,120]
[398352984,1765550625953,-500.0,0.00041643,120]
[398352985,1765550625982,-1335.95,0.00041643,120]
[398352986,1765550626011,-500.0,0.00041643,120]
[398352987,1765550626038,-500.0,0.00041643,120]
[398352988,1765550626065,-500.0,0.00041643,120]
[398352989,1765550626093,-950.34,0.00041643,120]
[398352990,1765550626119,-500.0,0.00041643,120]
[398352991,1765550626146,-500.0,0.00041643,120]
[398352992,1765550626174,-500.0,0.00041643,30]
[398352993,1765550626202,-500.0,0.00041643,120]
[398352994,1765550626239,-1237.89,0.00041643,120]
[398352995,1765550626266,-500.0,0.00041643,120]
[398352996,1765550626291,-500.0,0.00041643,120]
[398352997,1765550626321,-500.0,0.00041643,120]
[398352998,1765550626348,-500.0,0.00041643,120]
[398352999,1765550626375,-500.0,0.00041643,120]
[398353000,1765550626402,-500.0,0.00041643,120]
[398353001,1765550626429,-1050.96,0.00041643,120]
[398353002,1765550626455,-500.0,0.00041643,120]
[398353003,1765550626482,-599.7,0.00041643,120]
[398353004,1765550626508,-756.15,0.00041643,120]
[398353005,1765550626534,-627.07,0.00041643,120]
[398353006,1765550626562,-500.0,0.00041643,120]
[398353007,1765550626589,-500.0,0.00041643,120]
[398353008,1765550626615,-630.5,0.00041643,120]
[398353009,1765550626640,-846.67,0.00041643,120]
[398353010,1765550626666,-500.0,0.00041643,120]
[398353011,1765550626692,-500.0,0.00041643,120]
[398353012,1765550626720,-500.0,0.00041643,120]
[398353013,1765550626751,-592.88,0.00041643,120]
[398353014,1765550626776,-500.0,0.00041643,120]
[398353015,1765550626802,-500.0,0.00041643,120]
[398353016,1765550626839,-1313.08,0.00041643,120]
[398353017,1765550626865,-500.0,0.00041643,120]
[398353018,1765550626893,-500.0,0.00041643,120]
[398353019,1765550626919,-500.0,0.00041643,120]
[398353020,1765550626945,-2756.78,0.00041643,120]
[398353021,1765550626972,-500.0,0.00041643,120]
[398353022,1765550626998,-784.6,0.00041643,120]
[398353023,1765550627023,-500.0,0.00041643,120]
[398353024,1765550627052,-2350.79,0.00041643,120]
[398353025,1765550627079,-500.0,0.00041643,120]
[398353026,1765550627105,-281.75608105,0.00041643,120]
[398353027,1765550627131,-500.0,0.00041643,120]
[398353028,1765550627158,-500.0,0.00041643,120]
[398353029,1765550627184,-500.0,0.00041643,120]
[398353030,1765550627210,-678.0,0.00041643,120]
[398353031,1765550627236,-500.0,0.00041643,120]
[398353032,1765550627261,-500.0,0.00041643,120]
[398353033,1765550627285,-500.0,0.00041643,120]
[398353034,1765550627311,-551.87,0.00041643,120]
[398353035,1765550627336,-500.0,0.00041643,120]
[398353036,1765550627362,-2805.16,0.00041643,120]
[398353037,1765550627389,-770.49,0.00041643,120]
[398353038,1765550627416,-500.0,0.00041643,120]
[398353039,1765550627442,-1853.03,0.00041643,120]
[398353040,1765550627473,-500.0,0.00041643,120]
[398353041,1765550627500,-1526.12,0.00041643,120]
[398353042,1765550627527,-500.0,0.00041643,120]
[398353043,1765550627558,-500.0,0.00041643,120]
[398353044,1765550627597,-500.0,0.00041643,120]
[398353045,1765550627626,-500.0,0.00041643,120]
[398353046,1765550627654,-500.43129404,0.00041643,120]
[398353047,1765550627681,-656.45,0.00041643,120]
[398353048,1765550627706,-500.0,0.00041643,120]
[398353049,1765550627733,-500.74323773,0.00041643,120]
[398353050,1765550627759,-976.43,0.00041643,120]
[398353051,1765550627784,-500.0,0.00041643,120]
[398353052,1765550627809,-537.10004645,0.00041643,120]
[398353053,1765550627834,-500.0,0.00041643,120]
[398353054,1765550627859,-1044.0,0.00041643,120]
[398353055,1765550627884,-789.39,0.00041643,120]
[398353056,1765550627910,-500.0,0.00041643,120]
[398353057,1765550627936,-620.72048022,0.00041643,120]
[398353058,1765550627961,-500.0,0.00041643,120]
[398353059,1765550627987,-500.0,0.00041643,120]
[398353060,1765550628012,-1109.49,0.00041643,120]
[398353061,1765550628198,-1167.12,0.00041643,120]
[398353062,1765550628227,-500.0,0.00041643,120]
[398353063,1765550628254,-631.56,0.00041643,120]
[398353064,1765550628281,-500.0,0.00041643,120]
[398353065,1765550628308,-500.0,0.00041643,120]
[398353066,1765550628334,-1530.04,0.00041643,30]
[398353067,1765550628360,-500.0,0.00041643,120]
[398353068,1765550628387,-500.0,0.00041643,120]
[398353069,1765550628414,-500.0,0.00041643,120]
[398353070,1765550628459,-500.0,0.00041643,120]
[398353071,1765550628503,-500.0,0.00041643,120]
[398353072,1765550628546,-500.0,0.00041643,120]
[398353073,1765550628585,-500.0,0.00041643,120]
[398353074,1765550628624,-500.0,0.00041643,120]
[398353075,1765550628662,-510.37,0.00041643,120]
[398353076,1765550628701,-500.0,0.00041643,120]
[398353077,1765550628738,-2114.75886115,0.00041643,60]
[398353078,1765550628776,-530.49,0.00041643,120]
[398353079,1765550628815,-500.0,0.00041643,120]
[398353080,1765550628853,-500.0,0.00041643,120]
[398353081,1765550628893,-500.0,0.00041643,120]
[398353082,1765550628932,-593.35,0.00041643,120]
[398353083,1765550628970,-500.0,0.00041643,120]
[398353084,1765550629010,-1767.15,0.00041643,120]
[398353085,1765550629054,-1131.39,0.00041643,120]
[398353086,1765550629100,-500.0,0.00041643,120]
[398353087,1765550629147,-1136.91,0.00041643,120]
[398353088,1765550629192,-1199.96,0.00041643,120]
[398353089,1765550629233,-500.0,0.00041643,120]
[398353090,1765550629271,-863.6,0.00041643,120]
[398353091,1765550629311,-500.0,0.00041643,120]
[398353092,1765550629349,-500.0,0.00041643,120]
[398353093,1765550629386,-1062.86,0.00041643,120]
[398353094,1765550629426,-760.7,0.00041643,120]
[398353095,1765550629464,-500.0,0.00041643,120]
[398353096,1765550629500,-622.22,0.00041643,120]
[398353097,1765550629537,-633.34,0.00041643,120]
[398353098,1765550629577,-785.6,0.00041643,120]
[398353099,1765550629612,-500.0,0.00041643,120]
[398353100,1765550629648,-1007.11,0.00041643,120]
[398353101,1765550629682,-500.0,0.00041643,120]
[398353102,1765550629716,-643.45,0.00041643,120]
[398353103,1765550629753,-605.35,0.00041643,120]
[398353104,1765550629791,-1267.0,0.00041643,120]
[398353105,1765550629831,-500.0,0.00041643,120]
[398353106,1765550629866,-500.0,0.00041643,120]
[398353107,1765550629901,-1317.67,0.00041643,120]
[398353108,1765550629935,-500.0,0.00041643,120]
[398353109,1765550629970,-500.0,0.00041643,120]
[398353110,1765550630004,-2532.65,0.00041643,120]
[398353111,1765550630038,-500.0,0.00041643,120]
[398353112,1765550630073,-500.0,0.00041643,120]
[398353113,1765550630108,-500.0,0.00041643,120]
[398353114,1765550630143,-500.0,0.00041643,120]
[398353115,1765550630179,-500.0,0.00041643,120]
[398353116,1765550630215,-500.0,0.00041643,120]
[398353117,1765550630253,-649.21,0.00041643,120]
[398353118,1765550630287,-522.89,0.00041643,120]
[398353119,1765550630324,-500.0,0.00041643,120]
[398353120,1765550630363,-535.99,0.00041643,60]
[398353121,1765550630401,-1816.61,0.00041643,120]
[398353122,1765550630437,-500.0,0.00041643,120]
[398353123,1765550630474,-500.0,0.00041643,120]
[398353124,1765550630509,-2896.16,0.00041643,120]
[398353125,1765550630547,-1053.13,0.00041643,120]
[398353126,1765550630584,-500.0,0.00041643,120]
[398353127,1765550630620,-500.0,0.00041643,120]
[398353128,1765550630657,-901.04,0.00041643,120]
[398353129,1765550630692,-500.0,0.00041643,120]
[398353130,1765550630727,-268.35238312,0.00041643,120]
[398353131,1765550630764,-2528.58,0.00041643,30]
[398353132,1765550630800,-500.0,0.00041643,120]
[398353133,1765550630838,-500.0,0.00041643,120]
[398353134,1765550630875,-500.0,0.00041643,120]
[398353135,1765550630912,-500.0,0.00041643,120]
[398353136,1765550630950,-500.0,0.00041643,120]
[398353137,1765550630989,-500.0,0.00041643,120]
[398353138,1765550631027,-2217.63,0.00041643,120]
[398353139,1765550631064,-629.99523419,0.00041643,120]
[398353140,1765550631102,-500.0,0.00041643,120]
[398353141,1765550631140,-1430.93,0.00041643,120]
[398353142,1765550631183,-500.0,0.00041643,120]
[398353143,1765550631228,-425.50175455,0.00041643,120]
[398353144,1765550631273,-500.0,0.00041643,120]
[398353145,1765550631316,-500.0,0.00041643,120]
[398353146,1765550631360,-500.0,0.00041643,120]
[398353147,1765550631407,-1274.91,0.00041643,120]
[398353148,1765550631447,-500.0,0.00041643,120]
[398353149,1765550631487,-500.0,0.00041643,120]
[398353150,1765550631527,-1530.36,0.00041643,120]
[398353151,1765550631569,-2304.51,0.00041643,120]
[398353152,1765550631609,-500.0,0.00041643,120]
[398353153,1765550631649,-1066.0,0.00041643,120]
[398353154,1765550631687,-2307.18,0.00041643,120]
[398353155,1765550631885,-500.0,0.00041643,120]
[398353156,1765550631929,-500.0,0.00041643,120]
[398353157,1765550631970,-780.18,0.00041643,120]
[398353158,1765550632010,-500.0,0.00041643,120]
[398353159,1765550632051,-587.09,0.00041643,120]
[398353160,1765550632090,-912.38,0.00041643,120]
[398353161,1765550632128,-500.0,0.00041643,120]
[398353162,1765550632168,-500.0,0.00041643,120]
[398353163,1765550632208,-500.0,0.00041643,120]
[398353164,1765550632247,-500.0,0.00041643,120]
[398353165,1765550632285,-500.0,0.00041643,120]
[398353166,1765550632324,-500.0,0.00041643,120]
[398353167,1765550632363,-757.56,0.00041643,120]
[398353168,1765550632402,-1239.73,0.00041643,120]
[398353169,1765550632439,-500.0,0.00041643,120]
[398353170,1765550632477,-655.77,0.00041643,120]
[398353171,1765550632516,-500.0,0.00041643,120]
[398353172,1765550632555,-500.0,0.00041643,120]
[398353173,1765550632592,-500.0,0.00041643,120]
[398353174,1765550632631,-775.49,0.00041643,120]
[398353175,1765550632669,-550.93,0.00041643,120]
[398353176,1765550632706,-1207.54,0.00041643,120]
[398353177,1765550632743,-600.79,0.00041643,120]
[398353178,1765550632781,-500.0,0.00041643,120]
[398353179,1765550632819,-500.0,0.00041643,90]
[398353180,1765550632859,-4967.13,0.00041643,120]
[398353181,1765550632896,-673.72,0.00041643,120]
[398353182,1765550632935,-500.0,0.00041643,120]
[398353183,1765550632972,-500.0,0.00041643,120]
[398353184,1765550633010,-500.0,0.00041643,120]
[398353185,1765550633050,-500.0,0.00041643,120]
[398353186,1765550633088,-508.26,0.00041643,120]
[398353187,1765550633129,-740.52,0.00041643,120]
[398353188,1765550633169,-2196.53,0.00041643,120]
[398353189,1765550633213,-836.83,0.00041643,120]
[398353190,1765550633473,-500.0,0.00041643,120]
[398353191,1765550633516,-628.01,0.00041643,120]
[398353192,1765550633561,-500.0,0.00041643,120]
[398353193,1765550633602,-519.93,0.00041643,120]
[398353194,1765550633643,-978.47,0.00041643,120]
[398353195,1765550633682,-500.0,0.00041643,120]
[398353196,1765550633721,-500.0,0.00041643,120]
[398353197,1765550633761,-965.14,0.00041643,120]
[398353198,1765550633802,-500.0,0.00041643,120]
[398353199,1765550633845,-500.0,0.00041643,120]
[398353200,1765550633884,-500.0,0.00041643,120]
[398353201,1765550633923,-573.69029636,0.00041643,120]
[398353202,1765550633964,-1184.12,0.00041643,120]
[398353203,1765550634004,-500.0,0.00041643,120]
[398353204,1765550634045,-500.0,0.00041643,120]
[398353205,1765550634085,-902.21,0.00041643,120]
[398353206,1765550634125,-572.16,0.00041643,120]
[398353207,1765550634167,-500.0,0.00041643,120]
[398353208,1765550634208,-500.0,0.00041643,120]
[398353209,1765550634247,-1561.62,0.00041643,120]
[398353210,1765550634284,-500.0,0.00041643,120]
[398353211,1765550634325,-1553.54,0.00041643,120]
[398353212,1765550634368,-28106.34,0.00041643,120]
[398353213,1765550634408,-500.0,0.00041643,120]
[398353214,1765550634449,-749.87,0.00041643,120]
[398353215,1765550634489,-500.0,0.00041643,120]
[398353216,1765550634529,-500.0,0.00041643,120]
[398353217,1765550634574,-500.0,0.00041643,120]
[398353218,1765550634613,-1859.36,0.00041643,120]
[398353219,1765550634652,-500.0,0.00041643,120]
[398353220,1765550634688,-500.0,0.00041643,120]
[398353221,1765550634725,-1893.46,0.00041643,120]
[398353222,1765550634763,-830.87,0.00041643,120]
[398353223,1765550634800,-500.0,0.00041643,120]
[398353224,1765550634836,-534.91,0.00041643,120]
[398353225,1765550634877,-2243.46,0.00041643,120]
[398353226,1765550634914,-6367.5,0.00041643,120]
[398353227,1765550634954,-500.0,0.00041643,120]
[398353228,1765550634996,-500.0,0.00041643,120]
[398353229,1765550635038,-514.59,0.00041643,60]
[398353230,1765550635081,-500.0,0.00041643,120]
[398353231,1765550635123,-500.0,0.00041643,120]
[398353232,1765550635167,-3453.8,0.00041643,120]
[398353233,1765550635208,-500.0,0.00041643,120]
[398353234,1765550635253,-500.0,0.00041643,120]
[398353235,1765550635301,-835.05,0.00041643,120]
[398353236,1765550635350,-2657.46,0.00041643,120]
[398353237,1765550635399,-1899.05,0.00041643,120]
[398353238,1765550635447,-500.0,0.00041643,120]
[398353239,1765550635487,-2922.69,0.00041643,120]
[398353240,1765550635527,-1195.32,0.00041643,120]
[398353241,1765550635573,-500.0,0.00041643,120]
[398353242,1765550635612,-1029.2,0.00041643,120]
[398353243,1765550635653,-500.0,0.00041643,120]
[398353244,1765550635693,-500.0,0.00041643,120]
[398353245,1765550635734,-3323.03,0.00041643,120]
[398353246,1765550635778,-500.0,0.00041643,120]
[398353247,1765550635818,-500.0,0.00041643,120]
[398353248,1765550635856,-856.23,0.00041643,120]
[398353249,1765550635899,-500.0,0.00041643,120]
[398353250,1765550636110,-225.89382063,0.00041643,120]
[398353251,1765550636155,-644.05261123,0.00041643,120]
[398353252,1765550636208,-500.0,0.00041643,120]
[398353253,1765550636251,-4775.19,0.00041643,120]
[398353254,1765550636292,-500.0,0.00041643,120]
[398353255,1765550636337,-2051.1,0.00041643,120]
[398353256,1765550636386,-500.0,0.00041643,120]
[398353257,1765550636431,-3114.34,0.00041643,120]
[398353258,1765550636474,-1277.89,0.00041643,120]
[398353259,1765550636517,-8536.48,0.00041643,120]
[398353260,1765550636557,-3566.64,0.00041643,120]
[398353261,1765550636603,-602.99,0.00041643,120]
[398353262,1765550636648,-700.66,0.00041643,120]
[398353263,1765550636686,-500.0,0.00041643,120]
[398353264,1765550636725,-500.0,0.00041643,120]
[398353265,1765550636765,-1213.05,0.00041643,120]
[398353266,1765550636802,-500.0,0.00041643,120]
[398353267,1765550636843,-500.0,0.00041643,120]
[398353268,1765550636884,-1525.15,0.00041643,120]
[398353269,1765550636923,-500.0,0.00041643,120]
[398353270,1765550636962,-500.0,0.00041643,120]
[398353271,1765550637001,-500.0,0.00041643,120]
[398353272,1765550637040,-500.0,0.00041643,120]
[398353273,1765550637078,-638.67928474,0.00041643,120]
[398353274,1765550637117,-623.0,0.00041643,120]
[398353275,1765550637159,-500.0,0.00041643,120]
[398353276,1765550637199,-500.0,0.00041643,120]
[398353277,1765550637239,-862.66,0.00041643,120]
[398353278,1765550637278,-34926.57,0.00041643,120]
[398353279,1765550637320,-537.63,0.00041643,120]
[398353280,1765550637363,-500.0,0.00041643,120]
[398353281,1765550637402,-2694.37,0.00041643,120]
[398353282,1765550637441,-500.0,0.00041643,120]
[398353283,1765550637479,-496.83976298,0.00041643,120]